bitfinex-derivatives/quotes_BTCF0:USTF0_20250106
["timestamp","ask_amount","ask_price","bid_price","bid_amount"]
[1736138126653,0.46269879,99281.0,99280.0,0.046342]
[1736138127351,0.37216551,99281.0,99280.0,0.046342]
[1736138128747,0.46269879,99281.0,99280.0,0.046342]
[1736138129947,0.37216551,99281.0,99280.0,0.046342]
[1736138136358,0.3618,99281.0,99280.0,0.046342]
[1736138140663,0.48235853,99281.0,99280.0,0.046342]
[1736138142450,0.3618,99281.0,99280.0,0.046342]
[1736138145573,0.48257751,99281.0,99280.0,0.046342]
[1736138146757,0.3618,99281.0,99280.0,0.046342]
[1736138148062,0.3618,99281.0,99280.0,0.28740067]
[1736138149661,0.3618,99281.0,99280.0,0.046342]
[1736138150967,0.3618,99281.0,99280.0,0.22701072]
[1736138152870,0.3618,99281.0,99280.0,0.18166872]
[1736138153062,0.5523,99281.0,99275.0,0.22761106]
[1736138153259,0.045344,99276.0,99275.0,0.22761106]
[1736138154460,0.54692872,99281.0,99276.0,0.045344]
[1736138154669,0.54596871,99281.0,99276.0,0.045344]
[1736138155268,0.3953,99281.0,99276.0,0.045344]
[1736138155976,0.3933,99281.0,99276.0,0.045344]
[1736138156164,0.3913,99281.0,99276.0,0.045344]
[1736138156362,0.18126668,99279.0,99276.0,0.045344]
[1736138157571,0.18326668,99279.0,99276.0,0.045344]
[1736138157774,0.004,99279.0,99276.0,0.045344]
[1736138157971,0.045347,99269.0,99265.0,0.045348]
[1736138158275,0.045347,99268.0,99265.0,0.045348]
[1736138159769,0.046347,99268.0,99265.0,0.045348]
[1736138159976,0.047347,99268.0,99265.0,0.045348]
[1736138160368,0.002,99268.0,99265.0,0.045348]
[1736138160573,0.045348,99267.0,99265.0,0.045348]
[1736138161468,0.002,99268.0,99262.0,1.32]
[1736138161672,0.045349,99263.0,99262.0,1.32]
[1736138162974,0.046349,99263.0,99262.0,1.32]
[1736138163181,0.16711826,99263.0,99262.0,1.32]
[1736138163369,0.16711826,99263.0,99261.0,0.3608]
[1736138164063,0.16711826,99263.0,99261.0,0.40615]
[1736138165073,0.046349,99263.0,99261.0,0.40615]
[1736138165273,0.001,99263.0,99261.0,0.40615]
[1736138165777,0.001,99263.0,99262.0,0.04535]
[1736138166981,0.12076926,99266.0,99264.0,0.045349]
[1736138168870,0.12176926,99266.0,99264.0,0.045349]
[1736138169181,0.002,99266.0,99264.0,0.045349]
[1736138170776,0.002,99266.0,99265.0,0.0308]
[1736138172378,0.09250592,99266.0,99265.0,0.0308]
[1736138172876,0.002,99266.0,99264.0,0.045349]
[1736138174889,0.001,99266.0,99264.0,0.045349]
[1736138175182,0.002,99266.0,99264.0,0.045349]
[1736138176980,0.12076926,99265.0,99264.0,0.045349]
[1736138178085,0.047348,99266.0,99264.0,0.045349]
[1736138178289,0.001,99265.0,99264.0,0.045349]
[1736138178883,0.002,99265.0,99264.0,0.045349]
[1736138179074,0.001,99265.0,99264.0,0.045349]
[1736138179278,0.045349,99264.0,99261.0,0.3608]
[1736138180179,0.001,99265.0,99261.0,0.3608]
[1736138180376,0.045351,99261.0,99259.0,0.045351]
[1736138180573,0.001,99265.0,99252.0,0.406674]
[1736138180780,0.045354,99254.0,99252.0,0.3608]
[1736138181878,0.045354,99254.0,99252.0,0.3618]
[1736138182073,0.046354,99254.0,99252.0,0.3618]
[1736138185686,0.05623812,99254.0,99252.0,0.3618]
[1736138190587,0.12076969,99253.0,99252.0,0.3618]
[1736138192082,0.12176969,99253.0,99252.0,0.3618]
[1736138193386,0.001,99253.0,99252.0,0.3618]
[1736138200908,0.09156621,99253.0,99252.0,0.3618]
[1736138202509,0.001,99253.0,99252.0,0.3618]
[1736138206408,0.12176969,99253.0,99252.0,0.3618]
[1736138211212,0.001,99253.0,99252.0,0.3618]
[1736138212208,0.12176969,99253.0,99252.0,0.3618]
[1736138215016,0.15103368,99259.0,99252.0,0.3618]
[1736138215017,0.15103368,99259.0,99257.0,0.045352]
[1736138215217,0.21124581,99279.0,99257.0,0.045352]
[1736138215218,0.2102058,99279.0,99257.0,0.045352]
[1736138215412,0.2102058,99279.0,99264.0,0.406149]
[1736138215612,0.2200568,99279.0,99264.0,1.726149]
[1736138216217,0.09066158,99266.0,99265.0,0.045349]
[1736138217315,0.09166158,99266.0,99265.0,0.045349]
[1736138217514,0.001,99266.0,99265.0,0.045349]
[1736138218611,0.002,99266.0,99265.0,0.045349]
[1736138219420,0.09066158,99276.0,99275.0,0.045344]
[1736138220212,0.09066158,99280.0,99273.0,0.3608]
[1736138220418,0.09066158,99280.0,99279.0,0.045342]
[1736138221621,0.3608,99281.0,99279.0,0.045342]
[1736138222324,0.3608,99281.0,99279.0,0.046342]
[1736138222816,0.3608,99281.0,99279.0,0.045342]
[1736138223015,0.3608,99281.0,99279.0,0.046342]
[1736138223613,0.00809275,99283.0,99279.0,0.001]
[1736138223813,0.00809275,99283.0,99282.0,0.045341]
[1736138223814,0.09066158,99283.0,99282.0,0.045341]
[1736138225212,0.09066158,99285.0,99284.0,0.04534]
[1736138226626,0.001,99285.0,99284.0,0.04534]
[1736138227318,0.002,99285.0,99284.0,0.04534]
[1736138233634,0.002,99285.0,99284.0,0.40614]
[1736138233935,0.002,99285.0,99284.0,0.41428207]
[1736138234136,0.0637,99305.0,99304.0,0.045331]
[1736138234823,0.0331,99305.0,99304.0,0.045331]
[1736138235025,0.01714516,99308.0,99304.0,0.045331]
[1736138235235,0.18126668,99313.0,99312.0,0.045327]
[1736138235749,0.3608,99318.0,99317.0,0.045325]
[1736138235940,0.36875935,99318.0,99317.0,0.045325]
[1736138238034,0.38075935,99318.0,99317.0,0.045325]
[1736138238234,0.01995935,99318.0,99317.0,0.045325]
[1736138238748,0.01895935,99318.0,99317.0,0.045325]
[1736138238942,0.01695935,99318.0,99317.0,0.045325]
[1736138239148,0.009,99318.0,99317.0,0.045325]
[1736138240846,0.009,99318.0,99317.0,1.365325]
[1736138241950,0.009,99318.0,99317.0,0.045325]
[1736138242953,0.006,99318.0,99317.0,0.045325]
[1736138243153,0.007,99318.0,99317.0,0.045325]
[1736138244150,0.001,99318.0,99317.0,1.365325]
[1736138244454,0.002,99318.0,99317.0,1.365325]
[1736138250558,0.002,99318.0,99317.0,1.726125]
[1736138251856,0.045325,99316.0,99296.0,0.3007636]
[1736138252049,0.045325,99316.0,99281.0,0.26241085]
[1736138252050,0.7216,99297.0,99281.0,0.26241085]
[1736138252254,0.3608,99282.0,99281.0,0.15491813]
[1736138253957,0.3628,99282.0,99280.0,0.045342]
[1736138254563,0.3608,99282.0,99281.0,0.004]
[1736138254964,0.3618,99282.0,99281.0,0.004]
[1736138255159,0.3618,99282.0,99281.0,1.32]
[1736138256265,0.3608,99282.0,99281.0,1.32]
[1736138256859,0.3608,99282.0,99281.0,1.322]
[1736138279888,0.3608,99286.0,99285.0,0.045339]
[1736138281087,0.3618,99286.0,99285.0,0.045339]
[1736138288990,0.51207858,99286.0,99285.0,0.045339]
[1736138291390,0.41079372,99286.0,99285.0,0.18061319]
[1736138292892,0.45613272,99286.0,99285.0,0.18061319]
[1736138294389,0.45613272,99286.0,99280.0,0.045342]
[1736138294390,0.045341,99282.0,99280.0,0.045342]
[1736138294584,0.0657,99281.0,99280.0,0.045342]
[1736138295890,0.4265,99281.0,99277.0,0.18061319]
[1736138296091,0.045343,99278.0,99275.0,0.18061319]
[1736138296289,0.045344,99276.0,99275.0,0.18061319]
[1736138297683,0.09434637,99276.0,99271.0,0.045346]
[1736138297999,0.3608,99272.0,99271.0,0.045346]
[1736138299491,0.3608,99272.0,99271.0,0.046346]
[1736138300194,0.3608,99272.0,99271.0,0.049346]
[1736138306291,0.045344,99275.0,99271.0,0.004]
[1736138306496,0.3608,99272.0,99271.0,0.049346]
[1736138308901,0.48142441,99272.0,99271.0,0.049346]
[1736138310304,0.3608,99272.0,99271.0,0.049346]
[1736138325311,0.40980132,99272.0,99271.0,0.049346]
[1736138326909,0.04900132,99272.0,99271.0,0.049346]
[1736138327212,0.40980132,99272.0,99271.0,0.049346]
[1736138331714,0.04900132,99272.0,99271.0,0.049346]
[1736138332013,0.40980132,99272.0,99271.0,0.049346]
[1736138332910,0.40980132,99272.0,99271.0,0.004]
[1736138333115,0.44060132,99272.0,99271.0,0.004]
[1736138335818,0.56557157,99272.0,99271.0,0.004]
[1736138339423,0.44060132,99272.0,99271.0,0.004]
[1736138347523,0.045351,99259.0,99258.0,0.00151116]
[1736138347715,0.406151,99259.0,99257.0,1e-08]
[1736138347916,0.0631,99258.0,99257.0,1e-08]
[1736138349127,0.11210132,99258.0,99257.0,0.00100001]
[1736138350129,0.0631,99258.0,99257.0,0.00100001]
[1736138350531,0.40711101,99259.0,99257.0,0.00100001]
[1736138350829,0.406151,99259.0,99257.0,0.00100001]
[1736138351027,0.15092699,99258.0,99257.0,0.00100001]
[1736138351331,0.15092699,99258.0,99257.0,1.32100001]
[1736138352524,0.15092699,99258.0,99257.0,0.00100001]
[1736138352722,0.40711101,99259.0,99257.0,0.00100001]
[1736138352923,0.406151,99259.0,99257.0,0.00100001]
[1736138353632,0.4132676,99259.0,99257.0,0.00100001]
[1736138358734,0.56419459,99259.0,99257.0,0.00100001]
[1736138363532,0.3608,99258.0,99257.0,0.00100001]
[1736138363940,0.51172699,99258.0,99257.0,0.00100001]
[1736138364843,0.3608,99258.0,99257.0,0.00100001]
[1736138365044,0.3608,99258.0,99257.0,1e-08]
[1736138365341,0.3608,99258.0,99257.0,0.00100001]
[1736138366139,0.40980905,99258.0,99257.0,0.00100001]
[1736138370844,0.04900905,99258.0,99257.0,0.00100001]
[1736138371047,0.40980905,99258.0,99257.0,0.00100001]
[1736138371743,0.04900905,99258.0,99257.0,0.00100001]
[1736138371948,0.40980905,99258.0,99257.0,0.00100001]
[1736138373848,0.04900905,99258.0,99257.0,0.00100001]
[1736138374040,0.40980905,99258.0,99257.0,0.00100001]
[1736138378544,0.40980905,99258.0,99257.0,0.001]
[1736138379154,0.47270905,99258.0,99257.0,0.001]
[1736138384858,0.65387615,99258.0,99257.0,0.001]
[1736138385848,0.47270905,99258.0,99257.0,0.001]
[1736138393462,0.65419028,99258.0,99257.0,0.001]
[1736138396167,0.47270905,99258.0,99257.0,0.001]
[1736138398259,0.47270905,99258.0,99248.0,0.24028267]
[1736138398459,0.406156,99249.0,99248.0,0.24028267]
[1736138400168,0.45516505,99249.0,99248.0,0.002]
[1736138400661,0.45516505,99249.0,99241.0,0.24032267]
[1736138400662,0.40980905,99249.0,99241.0,0.24032267]
[1736138400855,0.045359,99243.0,99241.0,0.24032267]
[1736138401261,0.045359,99243.0,99241.0,4e-05]
[1736138402066,0.046359,99243.0,99241.0,4e-05]
[1736138402969,0.046359,99243.0,99241.0,0.00304]
[1736138406469,0.046359,99243.0,99242.0,0.0647]
[1736138406866,0.046359,99243.0,99242.0,1.3847]
[1736138407169,0.046359,99243.0,99242.0,1.430059]
[1736138407170,0.001,99243.0,99242.0,1.430059]
[1736138407670,0.001,99243.0,99242.0,1.433059]
[1736138408064,0.1511879,99245.0,99244.0,0.045358]
[1736138408877,0.12088685,99245.0,99244.0,1.32]
[1736138409170,0.12088685,99245.0,99244.0,1.365358]
[1736138409370,0.12188685,99245.0,99244.0,1.365358]
[1736138410475,0.12188685,99245.0,99244.0,1.368358]
[1736138410476,0.001,99245.0,99244.0,1.368358]
[1736138415480,0.001,99245.0,99244.0,0.048358]
[1736138416970,0.001,99245.0,99244.0,0.003]
[1736138417175,0.001,99245.0,99244.0,1.323]
[1736138458033,0.15221627,99245.0,99244.0,1.323]
[1736138465525,0.001,99245.0,99244.0,1.323]
[1736138468336,0.15225148,99245.0,99244.0,1.323]
[1736138471230,0.001,99245.0,99244.0,1.323]
[1736138473830,0.12193071,99245.0,99244.0,1.323]
[1736138475335,0.001,99245.0,99244.0,1.323]
[1736138477336,0.001,99245.0,99244.0,1.56419206]
[1736138481434,0.001,99245.0,99244.0,1.323]
[1736138490460,0.001,99245.0,99244.0,1.93574851]
[1736138491250,0.12093071,99251.0,99244.0,1.93574851]
[1736138491457,0.12093071,99251.0,99250.0,0.045355]
[1736138492256,0.12093071,99252.0,99250.0,0.045355]
[1736138492558,0.001,99251.0,99250.0,0.045355]
[1736138494750,0.001,99251.0,99250.0,0.047355]
[1736138539379,0.12195345,99251.0,99250.0,0.047355]
[1736138542383,0.001,99251.0,99250.0,0.047355]
[1736138544790,0.001,99251.0,99250.0,0.408155]
[1736138545386,0.12195447,99251.0,99250.0,0.408155]
[1736138546594,0.001,99251.0,99250.0,0.408155]
[1736138552599,0.001,99251.0,99250.0,0.047355]
[1736138557306,0.001,99251.0,99250.0,1.367355]
[1736138559195,0.00875618,99260.0,99259.0,0.045351]
[1736138559400,0.15125148,99261.0,99259.0,0.045351]
[1736138561205,0.16042809,99261.0,99259.0,0.047351]
[1736138561404,0.00917661,99261.0,99259.0,0.047351]
[1736138561597,0.54621149,99262.0,99259.0,0.002]
[1736138561902,0.54525148,99262.0,99261.0,0.04535]
[1736138562499,0.51205148,99262.0,99261.0,0.04535]
[1736138564608,0.15125148,99262.0,99261.0,0.04535]
[1736138564807,0.51205148,99262.0,99261.0,0.04635]
[1736138565009,0.3608,99262.0,99261.0,0.04635]
[1736138565901,0.36993125,99262.0,99261.0,0.04635]
[1736138571208,0.3608,99262.0,99261.0,0.04635]
[1736138571610,0.3608,99262.0,99261.0,1.60738988]
[1736138572904,0.3608,99262.0,99261.0,1.36635]
[1736138581717,0.3608,99266.0,99265.0,0.045349]
[1736138583804,0.3618,99266.0,99265.0,0.045349]
[1736138584814,0.3628,99266.0,99265.0,0.045349]
[1736138597417,0.002,99266.0,99265.0,0.045349]
[1736138597609,0.3628,99266.0,99265.0,0.045349]
[1736138608735,0.002,99266.0,99265.0,0.045349]
[1736138623937,0.002,99266.0,99265.0,0.28627619]
[1736138624541,0.002,99266.0,99265.0,0.24092719]
[1736138625138,0.05100348,99266.0,99263.0,0.1807344]
[1736138625844,0.05100348,99266.0,99263.0,0.2260834]
[1736138626044,0.05100348,99266.0,99264.0,0.045349]
[1736138626643,0.15114215,99265.0,99264.0,0.045349]
[1736138627446,0.18404215,99265.0,99264.0,0.045349]
[1736138627642,0.0329,99265.0,99264.0,0.045349]
[1736138627848,0.0339,99265.0,99264.0,0.045349]
[1736138628835,0.0349,99265.0,99264.0,0.045349]
[1736138646753,0.3957,99265.0,99264.0,0.045349]
[1736138648665,0.3628,99265.0,99264.0,0.045349]
[1736138649965,0.51394215,99265.0,99264.0,0.045349]
[1736138652163,0.41180544,99265.0,99264.0,0.045349]
[1736138654267,0.41180544,99265.0,99264.0,0.22594244]
[1736138656165,0.41180544,99265.0,99264.0,0.045349]
[1736138657768,0.51399725,99265.0,99264.0,0.045349]
[1736138659663,0.3628,99265.0,99264.0,0.045349]
[1736138663369,0.51398899,99265.0,99264.0,0.045349]
[1736138665075,0.3628,99265.0,99264.0,0.045349]
[1736138668466,0.002,99265.0,99264.0,0.045349]
[1736138668667,0.3628,99265.0,99264.0,0.045349]
[1736138670977,0.002,99265.0,99264.0,0.045349]
[1736138671177,0.3628,99265.0,99264.0,0.045349]
[1736138671981,0.51397749,99265.0,99264.0,0.045349]
[1736138673380,0.51397749,99265.0,99264.0,0.22607468]
[1736138673381,0.3628,99265.0,99264.0,0.22607468]
[1736138673876,0.3628,99265.0,99259.0,0.24092719]
[1736138674073,0.045351,99260.0,99259.0,0.24092719]
[1736138674783,0.045351,99260.0,99257.0,0.045352]
[1736138675081,0.0315,99259.0,99257.0,0.045352]
[1736138676179,0.076851,99259.0,99257.0,0.045352]
[1736138676374,0.15116518,99258.0,99257.0,0.045352]
[1736138677070,0.15116518,99258.0,99257.0,0.047352]
[1736138679776,0.15116518,99258.0,99257.0,0.002]
[1736138681785,0.04900877,99258.0,99257.0,0.002]
[1736138682382,0.05862568,99258.0,99257.0,0.002]
[1736138683284,0.00961691,99258.0,99257.0,0.002]
[1736138683485,0.25831053,99259.0,99257.0,0.002]
[1736138684382,0.04900877,99258.0,99257.0,0.002]
[1736138684978,0.09436077,99258.0,99257.0,0.002]
[1736138686384,0.045353,99256.0,99253.0,0.045354]
[1736138686585,0.3608,99254.0,99253.0,0.045354]
[1736138687583,0.3608,99254.0,99253.0,0.047354]
[1736138687980,0.3608,99254.0,99253.0,0.048354]
[1736138690087,0.3608,99254.0,99253.0,1.368354]
[1736138691385,0.3608,99254.0,99253.0,0.048354]
[1736138700096,0.406154,99254.0,99253.0,0.003]
[1736138701197,0.3608,99254.0,99253.0,0.003]
[1736138701807,0.51183613,99254.0,99253.0,0.003]
[1736138703007,0.15103613,99254.0,99253.0,0.003]
[1736138703307,0.19151404,99260.0,99259.0,0.045351]
[1736138703504,0.18145953,99260.0,99259.0,0.045351]
[1736138703698,0.18145953,99260.0,99259.0,1.365351]
[1736138704300,0.18145953,99260.0,99259.0,0.045351]
[1736138704503,0.51189189,99265.0,99256.0,0.24092719]
[1736138704808,0.51189189,99265.0,99264.0,0.045349]
[1736138705703,0.52193463,99265.0,99264.0,0.045349]
[1736138705906,0.37084274,99265.0,99264.0,0.045349]
[1736138706297,0.3608,99265.0,99264.0,0.045349]
[1736138706610,0.18145953,99274.0,99264.0,0.045349]
[1736138706611,0.18145953,99274.0,99273.0,0.045345]
[1736138707107,0.3608,99277.0,99276.0,0.045344]
[1736138707108,0.5420311,99277.0,99276.0,0.045344]
[1736138708412,0.5460311,99277.0,99276.0,0.045344]
[1736138708713,0.3648,99277.0,99276.0,0.045344]
[1736138708916,0.3648,99277.0,99276.0,1.365344]
[1736138709612,0.3668,99277.0,99276.0,1.365344]
[1736138711113,0.006,99277.0,99276.0,1.365344]
[1736138711817,0.46222364,99284.0,99283.0,0.04534]
[1736138712015,0.46126363,99284.0,99283.0,0.04534]
[1736138712205,0.10046363,99284.0,99283.0,0.04534]
[1736138713204,0.00991719,99284.0,99283.0,0.04534]
[1736138713400,0.3608,99285.0,99283.0,0.04534]
[1736138713606,0.3608,99285.0,99283.0,0.04634]
[1736138714807,0.09054644,99292.0,99291.0,0.045337]
[1736138715315,0.10045872,99292.0,99291.0,0.045337]
[1736138716213,0.00991228,99292.0,99291.0,0.045337]
[1736138716414,0.09054644,99294.0,99293.0,0.045336]
[1736138717720,0.45134644,99296.0,99294.0,0.045335]
[1736138717907,0.46123701,99296.0,99294.0,0.045335]
[1736138719008,0.37069057,99296.0,99294.0,0.045335]
[1736138719410,0.37269057,99296.0,99294.0,0.045335]
[1736138720014,0.37669057,99296.0,99294.0,0.045335]
[1736138721211,0.37469057,99296.0,99294.0,0.045335]
[1736138721409,0.37569057,99296.0,99294.0,0.045335]
[1736138721613,0.37369057,99296.0,99294.0,0.045335]
[1736138722916,0.7216,99295.0,99294.0,0.045335]
[1736138724120,0.7226,99295.0,99294.0,0.045335]
[1736138724313,0.7246,99295.0,99294.0,0.045335]
[1736138726715,0.757,99295.0,99294.0,0.045335]
[1736138729419,0.757,99295.0,99268.0,0.24092719]
[1736138729621,0.3608,99277.0,99276.0,0.045344]
[1736138731627,0.3608,99277.0,99276.0,0.046344]
[1736138733818,0.37056447,99277.0,99276.0,0.046344]
[1736138735828,0.73136447,99277.0,99276.0,0.046344]
[1736138736029,0.73136447,99277.0,99276.0,0.001]
[1736138737327,0.78036667,99277.0,99276.0,0.001]
[1736138737828,0.78036667,99277.0,99269.0,1.32052]
[1736138738025,0.78036667,99277.0,99272.0,0.045345]
[1736138739031,0.88233708,99277.0,99272.0,0.045345]
[1736138739227,0.88233708,99277.0,99269.0,1.32052]
[1736138739228,0.88233708,99277.0,99275.0,0.045344]
[1736138740229,0.73136447,99277.0,99275.0,0.045344]
[1736138740733,0.73136447,99277.0,99275.0,0.046344]
[1736138741728,0.12072803,99276.0,99275.0,0.046344]
[1736138742739,0.12072803,99277.0,99275.0,0.046344]
[1736138743032,0.12072803,99277.0,99275.0,1.366344]
[1736138743834,0.12072803,99277.0,99275.0,1.365344]
[1736138744135,0.12072803,99277.0,99275.0,1.366344]
[1736138744522,0.45133456,99285.0,99284.0,0.04534]
[1736138746728,0.45233456,99285.0,99284.0,0.04534]
[1736138747424,0.3618,99285.0,99284.0,0.04534]
[1736138747628,0.3638,99285.0,99284.0,0.04534]
[1736138748837,0.003,99285.0,99284.0,0.04534]
[1736138749030,0.3638,99285.0,99284.0,0.04534]
[1736138751339,0.003,99285.0,99284.0,0.04534]
[1736138751533,0.3638,99285.0,99284.0,0.04534]
[1736138752249,0.45433456,99285.0,99284.0,0.04534]
[1736138754645,0.3638,99285.0,99284.0,0.04534]
[1736138759840,0.45433191,99285.0,99284.0,0.04534]
[1736138761348,0.3638,99285.0,99284.0,0.04534]
[1736138766942,0.003,99285.0,99284.0,0.04534]
[1736138767142,0.3638,99285.0,99284.0,0.04534]
[1736138774857,0.48471328,99285.0,99284.0,1.36534]
[1736138776451,0.3638,99285.0,99284.0,1.66680897]
[1736138777859,0.3638,99285.0,99284.0,1.68729789]
[1736138778062,0.003,99285.0,99284.0,1.68729789]
[1736138781262,0.003,99285.0,99284.0,1.36534]
[1736138782366,0.3638,99285.0,99284.0,1.36534]
[1736138782559,0.3608,99285.0,99284.0,1.36534]
[1736138782759,0.3608,99285.0,99284.0,1.36634]
[1736138784160,0.48171328,99285.0,99284.0,1.36634]
[1736138785364,0.3608,99285.0,99284.0,1.36634]
[1736138793278,0.12087788,99286.0,99284.0,1.36634]
[1736138793480,0.3608,99285.0,99284.0,1.36634]
[1736138797790,0.48167788,99285.0,99284.0,1.36634]
[1736138803893,0.3608,99285.0,99284.0,1.36634]
[1736138807795,0.12087788,99288.0,99287.0,0.045339]
[1736138807996,0.48167788,99288.0,99287.0,0.045339]
[1736138810290,0.48367788,99288.0,99287.0,0.045339]
[1736138811491,0.3628,99288.0,99287.0,0.045339]
[1736138830110,0.3608,99299.0,99285.0,0.31157449]
[1736138830410,0.3608,99299.0,99298.0,0.045333]
[1736138830798,0.3608,99299.0,99298.0,1.365333]
[1736138832914,0.3608,99299.0,99298.0,1.68725752]
[1736138833207,0.005,99299.0,99298.0,1.68825752]
[1736138833605,0.008,99299.0,99298.0,1.68825752]
[1736138834002,0.09060926,99304.0,99303.0,0.045331]
[1736138834316,0.04205551,99317.0,99316.0,0.045325]
[1736138834609,0.04205551,99317.0,99316.0,1.365325]
[1736138834910,0.0319107,99317.0,99316.0,1.365325]
[1736138835711,0.0015107,99317.0,99316.0,1.365325]
[1736138835903,0.0311,99330.0,99329.0,0.045319]
[1736138836101,0.18066496,99334.0,99333.0,0.045318]
[1736138836604,0.18066496,99334.0,99333.0,1.365318]
[1736138837615,0.18366496,99334.0,99333.0,1.365318]
[1736138837910,0.003,99334.0,99333.0,1.365318]
[1736138839310,0.0324,99351.0,99350.0,0.04531]
[1736138839510,0.18066496,99363.0,99353.0,0.045308]
[1736138839709,0.0324,99362.0,99353.0,0.045308]
[1736138839901,0.0324,99362.0,99353.0,1.365308]
[1736138840306,0.01141023,99354.0,99353.0,1.365308]
[1736138840702,0.02041023,99354.0,99353.0,1.366308]
[1736138841106,0.02441023,99354.0,99353.0,1.366308]
[1736138841713,0.02441023,99354.0,99353.0,0.046308]
[1736138841911,0.02441023,99354.0,99345.0,0.045312]
[1736138842116,0.045316,99336.0,99333.0,4.1807156]
[1736138842313,0.3608,99334.0,99333.0,4.0]
[1736138844418,0.0098513,99342.0,99341.0,0.045314]
[1736138844618,0.0015104,99354.0,99351.0,0.045309]
[1736138845113,0.0325,99352.0,99351.0,0.045309]
[1736138845510,0.3933,99352.0,99351.0,0.045309]
[1736138845711,0.3933,99352.0,99344.0,0.045312]
[1736138845912,0.3608,99350.0,99341.0,0.0006]
[1736138846120,0.3608,99342.0,99333.0,4.0]
[1736138846413,0.3628,99342.0,99340.0,0.045314]
[1736138847110,0.3608,99342.0,99341.0,0.001]
[1736138847918,0.3628,99342.0,99341.0,0.001]
[1736138848520,0.002,99342.0,99341.0,0.001]
[1736138849317,0.002,99342.0,99340.0,0.045314]
[1736138849512,0.3648,99342.0,99340.0,0.045314]
[1736138849825,0.3668,99342.0,99340.0,0.045314]
[1736138851023,0.3628,99342.0,99340.0,0.045314]
[1736138851223,0.3668,99342.0,99340.0,0.045314]
[1736138851620,0.006,99342.0,99340.0,0.045314]
[1736138858332,0.045316,99337.0,99334.0,1.32052]
[1736138858522,0.045317,99334.0,99333.0,4.0006]
[1736138858725,0.045317,99334.0,99333.0,4.0]
[1736138859827,0.046317,99334.0,99333.0,1.87125881]
[1736138861325,0.346317,99334.0,99333.0,1.87125881]
[1736138862331,0.09529819,99334.0,99333.0,1.87125881]
[1736138863634,0.27596315,99334.0,99333.0,1.87125881]
[1736138866139,0.09529819,99334.0,99333.0,1.87125881]
[1736138868731,0.046317,99334.0,99333.0,1.87125881]
[1736138872631,0.09529212,99334.0,99333.0,1.87125881]
[1736138879250,0.046317,99334.0,99333.0,1.87125881]
[1736138884853,0.047317,99334.0,99333.0,1.87125881]
[1736138885056,0.048317,99334.0,99333.0,1.87125881]
[1736138885753,0.048317,99334.0,99333.0,1.91657681]
[1736138886153,0.3608,99337.0,99336.0,0.045316]
[1736138886648,0.3608,99337.0,99336.0,1.365316]
[1736138886953,0.01006384,99343.0,99340.0,0.045314]
[1736138888463,0.3628,99341.0,99340.0,0.045314]
[1736138888870,0.3638,99341.0,99340.0,0.045314]
[1736138897767,0.3638,99341.0,99337.0,0.0333]
[1736138897971,0.045314,99340.0,99336.0,0.1807156]
[1736138898172,0.3638,99341.0,99336.0,0.1807156]
[1736138898369,0.045316,99338.0,99336.0,0.1807156]
[1736138899273,0.045316,99338.0,99335.0,0.045317]
[1736138900474,0.3608,99341.0,99337.0,0.045316]
[1736138900675,0.3608,99341.0,99338.0,0.045315]
[1736138901980,0.3628,99341.0,99339.0,0.045315]
[1736138903270,0.48337398,99341.0,99339.0,0.045315]
[1736138904581,0.3628,99341.0,99339.0,0.045315]
[1736138905477,0.3608,99340.0,99333.0,1.87181881]
[1736138905675,0.045315,99339.0,99333.0,1.87125881]
[1736138905977,0.045317,99334.0,99333.0,1.87125881]
[1736138906781,0.045317,99334.0,99333.0,1.87225881]
[1736138907185,0.045317,99334.0,99333.0,2.05297441]
[1736138909879,0.045317,99334.0,99333.0,1.87225881]
[1736138913572,0.045317,99334.0,99333.0,1.87125881]
[1736138914474,0.15079417,99336.0,99334.0,0.045317]
[1736138914680,0.15079417,99336.0,99335.0,1.32]
[1736138916587,0.15279417,99336.0,99335.0,1.32]
[1736138916785,0.002,99336.0,99335.0,1.32]
[1736138919083,0.002,99336.0,99333.0,1.87181881]
[1736138919084,0.045317,99335.0,99333.0,1.87181881]
[1736138919389,0.045317,99335.0,99333.0,1.87125881]
[1736138923201,0.07656104,99335.0,99333.0,1.87125881]
[1736138924498,0.04897361,99334.0,99333.0,1.87125881]
[1736138929000,0.40977361,99334.0,99333.0,1.87125881]
[1736138931505,0.3608,99334.0,99333.0,1.87125881]
[1736138933999,0.51184584,99334.0,99333.0,2.05197441]
[1736138934400,0.15104584,99334.0,99333.0,2.05197441]
[1736138935606,0.46164871,99335.0,99333.0,1.87125881]
[1736138935790,0.4606887,99335.0,99333.0,1.87125881]
[1736138936913,0.04897362,99334.0,99333.0,1.87125881]
[1736138938799,0.40977362,99334.0,99333.0,1.87125881]
[1736138943710,0.04897362,99334.0,99333.0,1.87125881]
[1736138943901,0.04897362,99334.0,99333.0,2.05222068]
[1736138945404,0.04897362,99334.0,99333.0,1.87125881]
[1736138946602,0.0998887,99335.0,99333.0,1.87125881]
[1736138947904,0.15109899,99334.0,99333.0,1.87125881]
[1736138948706,0.21429899,99334.0,99333.0,1.87125881]
[1736138949304,0.11217232,99334.0,99333.0,1.87125881]
[1736138950805,0.22110239,99334.0,99333.0,1.87125881]
[1736138953516,0.11217232,99334.0,99333.0,1.87125881]
[1736138955709,0.04897232,99334.0,99333.0,1.87125881]
[1736138956513,0.04897232,99334.0,99333.0,3.19125881]
[1736138957816,0.46164871,99335.0,99333.0,3.19125881]
[1736138958017,0.4606887,99335.0,99333.0,3.19125881]
[1736138958609,0.4606887,99335.0,99334.0,0.0323]
[1736138963413,0.4606887,99335.0,99334.0,0.077617]
[1736138963614,0.4606887,99335.0,99334.0,1.397617]
[1736138964322,0.4606887,99335.0,99334.0,0.077617]